bitfinex-derivatives/quotes_ETHF0:USTF0_20250115
["timestamp","ask_amount","ask_price","bid_price","bid_amount"]
[1736974871519,2.76750656,3437.8,3437.4,0.58179]
[1736974871728,2.76750656,3437.8,3437.2,0.7827]
[1736974872025,2.76750656,3437.8,3437.2,3.9905]
[1736974872324,0.58179,3437.5,3437.4,0.58179]
[1736974872718,0.58177,3437.6,3437.5,0.58177]
[1736974872923,0.5817,3438.0,3437.6,0.58176]
[1736974873220,0.58182,3437.3,3437.2,4.57233]
[1736974873423,0.58181,3437.4,3437.3,0.58181]
[1736974874121,1.45438,3437.7,3437.2,4.57232]
[1736974874320,0.5818,3437.4,3437.3,0.58181]
[1736974874516,1.45438,3437.7,3437.2,3.9905]
[1736974874923,0.5818,3437.4,3437.3,0.5818]
[1736974875430,1.68203785,3438.0,3437.3,1.45455]
[1736974875431,0.22778785,3438.0,3437.3,1.45455]
[1736974875616,0.22778785,3438.0,3437.2,3.9905]
[1736974875617,3.78949,3438.1,3437.6,3.2078]
[1736974875819,3.78949,3438.1,3437.9,0.5817]
[1736974876013,3.78949,3438.1,3438.0,0.5817]
[1736974876226,0.58171,3438.0,3437.8,0.8176]
[1736974876425,0.58171,3437.9,3437.8,1.39932]
[1736974876826,0.58171,3437.9,3437.8,1.39933]
[1736974877726,3.2078,3438.1,3437.8,0.8176]
[1736974878328,0.58171,3437.9,3437.8,1.39932]
[1736974878530,0.58171,3437.9,3437.8,1.39933]
[1736974878822,3.2078,3438.1,3437.9,0.58171]
[1736974878823,0.58171,3438.0,3437.9,0.58171]
[1736974879027,3.78949,3438.1,3438.0,0.5817]
[1736974879222,3.2078,3438.1,3438.0,0.5817]
[1736974879823,2.76750656,3438.4,3437.8,0.8176]
[1736974880228,0.58166,3438.3,3438.2,0.58166]
[1736974880530,2.76750656,3438.4,3437.8,0.8176]
[1736974880732,0.58171,3437.9,3437.8,1.0503]
[1736974881121,0.58171,3437.9,3437.8,0.2327]
[1736974883223,0.58171,3437.9,3437.8,1.3962]
[1736974884023,0.72191,3437.9,3437.8,1.2566]
[1736974885628,5.72191,3437.9,3437.8,0.90524162]
[1736974886434,0.72191,3437.9,3437.8,0.90524162]
[1736974886931,0.72191,3437.9,3437.8,1.13794162]
[1736974888037,0.58183,3437.2,3437.1,0.7273]
[1736974888238,6.55713656,3437.2,3437.1,0.7273]
[1736974888430,6.55713656,3437.2,3437.1,0.0546056]
[1736974889244,6.55713656,3437.2,3437.1,1.5066056]
[1736974891040,0.58183,3437.2,3437.1,2.0884556]
[1736974891236,3.2078,3437.6,3437.1,1.5066056]
[1736974891440,0.58181,3437.4,3437.3,0.5818]
[1736974891638,0.58181,3437.4,3437.3,41.3818]
[1736974891837,0.58181,3437.4,3437.3,41.38182]
[1736974892138,0.5818,3437.4,3437.3,41.38182]
[1736974892541,3.2078,3437.6,3437.3,40.8]
[1736974892741,0.5818,3437.5,3437.4,1.41718]
[1736974892945,0.5818,3437.5,3437.4,0.8354]
[1736974893243,3.34930656,3437.5,3437.4,0.8354]
[1736974896746,0.5818,3437.5,3437.4,0.8354]
[1736974897543,0.5818,3437.5,3437.4,1.4172]
[1736974898545,0.5818,3437.5,3437.4,0.8354]
[1736974899748,2.89356878,3437.5,3437.4,0.8354]
[1736974901242,0.5818,3437.5,3437.4,0.8354]
[1736974902944,0.5818,3437.5,3437.4,1.4887]
[1736974903751,5.51956878,3437.8,3437.4,1.4887]
[1736974904051,0.58178,3437.6,3437.5,0.58176]
[1736974904448,0.58178,3437.6,3437.5,0.81446]
[1736974904846,22.87509776,3438.1,3437.7,0.58173]
[1736974904847,0.58174,3437.8,3437.7,0.58173]
[1736974905049,22.87509776,3438.1,3437.6,0.58175]
[1736974905050,0.58176,3437.7,3437.6,0.58175]
[1736974905855,3.2078,3438.2,3437.5,0.2327]
[1736974906153,0.58174,3437.9,3437.8,0.58172]
[1736974907446,10.11658711,3438.5,3437.8,3.2078]
[1736974907647,10.11658711,3438.5,3437.9,0.8136]
[1736974907854,10.11658711,3438.5,3438.0,0.8129]
[1736974908050,0.58164,3438.4,3438.3,0.58165]
[1736974909252,0.58163,3438.5,3438.4,0.58162]
[1736974909649,3.2078,3438.6,3438.0,2.26712]
[1736974909852,3.7894,3438.6,3438.5,0.58161]
[1736974910048,3.2078,3438.6,3438.0,0.8129]
[1736974910242,3.2078,3438.6,3438.5,0.58161]
[1736974910449,3.7894,3438.6,3438.5,1.74481]
[1736974910852,0.5816,3438.6,3438.5,1.74481]
[1736974911057,0.5816,3438.6,3438.5,1.7448]
[1736974911357,0.5816,3438.6,3438.5,1.1632]
[1736974911654,0.58159,3438.7,3438.6,0.58158]
[1736974911853,0.5816,3438.6,3438.5,1.1632]
[1736974913754,0.5816,3438.6,3438.5,1.74481]
[1736974913958,15.63615589,3439.1,3438.8,0.58155]
[1736974914159,0.58153,3439.0,3438.9,0.8401]
[1736974914648,0.58153,3439.0,3438.9,0.8957]
[1736974915858,6.10108878,3439.1,3438.9,1.47724]
[1736974916056,2.89328878,3439.1,3438.9,1.47724]
[1736974916256,2.89328878,3439.1,3438.9,2.13034]
[1736974916762,2.31176878,3439.1,3438.9,2.13034]
[1736974916956,2.89328878,3439.1,3438.9,2.13034]
[1736974917258,10.11658711,3439.4,3439.2,0.58149]
[1736974917259,0.58149,3439.3,3439.2,0.58149]
[1736974917853,10.11658711,3439.4,3439.3,0.58148]
[1736974918451,0.58144,3439.6,3439.0,4.038]
[1736974918652,0.58144,3439.6,3439.4,0.58145]
[1736974919048,0.58143,3439.7,3439.5,0.58144]
[1736974919254,2.31176878,3439.8,3439.0,4.038]
[1736974919458,0.58145,3439.5,3439.3,0.58146]
[1736974919659,0.58145,3439.5,3439.4,0.58146]
[1736974919856,3.78922,3439.7,3439.6,0.58143]
[1736974920056,3.2078,3439.7,3439.6,0.58143]
[1736974920255,3.78921,3439.7,3439.6,0.58143]
[1736974920856,3.2078,3439.7,3439.6,0.58143]
[1736974922262,2.31176878,3440.2,3439.3,40.8]
[1736974922263,0.58139,3439.8,3439.3,40.8]
[1736974922461,3.2078,3440.1,3439.3,43.11176878]
[1736974922853,3.2078,3440.1,3439.9,0.58137]
[1736974923058,0.58137,3440.0,3439.8,0.58138]
[1736974923359,0.58139,3439.9,3439.7,0.5814]
[1736974923558,0.58139,3439.9,3439.3,43.11176878]
[1736974923759,0.58139,3439.9,3439.8,0.58139]
[1736974924166,3.2078,3440.5,3439.4,3.2078]
[1736974924362,0.58137,3440.0,3439.8,0.58138]
[1736974924669,5.51956878,3440.1,3439.4,3.2078]
[1736974924960,0.58138,3439.9,3439.7,0.5814]
[1736974925160,3.2078,3440.1,3439.4,3.2078]
[1736974925461,0.58141,3439.7,3439.6,0.58143]
[1736974925663,2.31176878,3440.0,3439.6,1.1629]
[1736974925864,0.5814,3439.8,3439.7,0.58141]
[1736974926066,0.5814,3439.8,3439.7,1.41361]
[1736974926368,0.58139,3439.8,3439.7,1.41361]
[1736974926667,0.58139,3439.9,3439.7,1.41361]
[1736974926965,0.58139,3439.9,3439.8,0.58139]
[1736974927165,0.58138,3439.9,3439.7,1.41361]
[1736974927361,2.31176878,3440.0,3439.7,0.8322]
[1736974927562,2.31176878,3440.0,3439.7,1.4136]
[1736974927764,0.58139,3439.8,3439.7,1.4136]
[1736974928068,0.58141,3439.7,3439.6,1.3954]
[1736974928265,0.58141,3439.7,3439.6,1.97683]
[1736974928457,2.31176878,3440.0,3439.6,1.3954]
[1736974928760,0.5814,3439.8,3439.6,1.97681]
[1736974928961,0.5814,3439.8,3439.6,1.3954]
[1736974929160,0.5814,3439.8,3439.7,0.58141]
[1736974929359,2.31176878,3440.0,3439.6,1.3954]
[1736974929566,0.58141,3439.7,3439.6,1.3954]
[1736974929766,2.89317878,3439.7,3439.6,1.3954]
[1736974931171,0.58141,3439.7,3439.6,1.3954]
[1736974931372,0.58137,3440.0,3439.9,0.58138]
[1736974932470,3.2078,3440.1,3439.6,1.3954]
[1736974932669,0.58141,3439.7,3439.6,1.3954]
[1736974933365,3.78921,3439.7,3439.6,1.3954]
[1736974934372,3.78921,3439.7,3439.6,0.41235396]
[1736974935067,4.02351801,3439.7,3439.6,0.41235396]
[1736974935487,3.78921,3439.7,3439.6,0.41235396]
[1736974936670,3.78921,3439.7,3439.6,0.13646348]
[1736974937574,0.58153,3439.0,3438.9,0.7087]
[1736974937873,2.89329878,3439.0,3438.9,0.7087]
[1736974938266,0.58153,3439.0,3438.9,1.29024]
[1736974938467,0.58153,3439.0,3438.9,0.7087]
[1736974938665,0.58153,3439.0,3438.9,0.9413]
[1736974941375,0.58153,3439.0,3438.9,1.52284]
[1736974941577,0.58153,3439.0,3438.9,0.9413]
[1736974941773,0.58153,3439.0,3438.9,1.52284]
[1736974942173,0.58153,3439.0,3438.9,0.9413]
[1736974943676,0.58153,3439.0,3438.9,1.1603]
[1736974946782,0.58153,3439.0,3438.9,0.91392794]
[1736974948578,5.23071264,3439.0,3438.1,0.7895]
[1736974948779,2.89342878,3438.2,3438.1,0.7895]
[1736974949887,2.89342878,3438.2,3438.1,0.9023]
[1736974951880,0.58166,3438.2,3438.1,0.9023]
[1736974953681,2.89342878,3438.2,3438.1,0.9023]
[1736974954484,2.89342878,3438.2,3438.1,2.0657]
[1736974954786,0.58166,3438.2,3438.1,2.0657]
[1736974954988,0.58166,3438.2,3438.1,2.64738]
[1736974957292,3.2078,3438.3,3438.1,2.0657]
[1736974957491,1.9348,3438.3,3438.1,2.0657]
[1736974958097,2.51646,3438.3,3438.2,0.58166]
[1736974958603,1.9348,3438.3,3438.1,2.0657]
[1736974958806,3.2078,3438.7,3438.1,2.0657]
[1736974958999,0.58161,3438.6,3438.5,0.5816]
[1736974959303,3.2078,3438.7,3438.1,2.0657]
[1736974959304,0.58162,3438.5,3438.4,0.58162]
[1736974961099,0.58158,3438.7,3438.4,0.58163]
[1736974961305,0.5816,3438.7,3438.5,0.8409]
[1736974961605,0.5816,3438.7,3438.6,0.5816]
[1736974961799,6.97337878,3439.1,3438.5,0.8409]
[1736974961800,5.51956878,3439.1,3438.7,0.58157]
[1736974962004,0.58154,3439.0,3438.9,0.58154]
[1736974962597,5.51956878,3439.6,3438.8,0.8339]
[1736974962798,5.51956878,3439.6,3438.8,2.28779]
[1736974962999,0.58151,3439.2,3439.1,0.5815]
[1736974963394,0.58151,3439.2,3439.1,40.8]
[1736974963905,0.58154,3438.9,3438.8,1.41546]
[1736974964094,5.51956878,3439.1,3438.5,0.8409]
[1736974964296,5.51956878,3439.1,3438.4,0.819]
[1736974964297,2.31176878,3438.7,3438.4,0.819]
[1736974964497,0.58161,3438.5,3438.4,0.819]
[1736974969997,0.58161,3438.5,3438.1,1.9613]
[1736974969998,0.58166,3438.2,3438.1,2.54296]
[1736974970197,0.58166,3438.2,3438.1,1.1634]
[1736974971111,0.58166,3438.2,3438.1,1.2763]
[1736974972313,0.58161,3438.6,3438.5,0.5816]
[1736974972911,0.58161,3438.6,3438.5,41.3816]
[1736974973612,0.58161,3438.6,3438.5,40.8]
[1736974973813,0.58161,3438.6,3438.5,41.38161]
[1736974974113,0.58161,3438.6,3438.5,0.58161]
[1736974974314,0.58164,3438.5,3438.4,0.58162]
[1736974974812,0.58164,3438.5,3438.4,41.38162]
[1736974975406,0.58164,3438.5,3438.4,40.8]
[1736974975806,0.58164,3438.5,3438.4,41.6483]
[1736974976410,0.58164,3438.5,3438.4,0.8483]
[1736974976607,0.58164,3438.5,3438.4,2.8841]
[1736974977310,0.58164,3438.5,3438.4,2.0358]
[1736974982408,0.58164,3438.5,3438.4,2.61743]
[1736974983117,0.58164,3438.5,3438.4,2.0358]
[1736974985415,0.58164,3438.5,3438.4,2.1487]
[1736974987719,1.04992327,3438.5,3438.4,2.1487]
[1736974988314,0.58164,3438.5,3438.4,2.1487]
[1736974990619,0.58164,3438.5,3438.4,3.312]
[1736974990823,0.58164,3438.5,3438.4,2.70061]
[1736974993021,0.58164,3438.5,3438.4,1.42604]
[1736974993424,0.58164,3438.5,3438.4,0.64618]
[1736974993625,0.58166,3438.2,3438.1,0.77898]
[1736974993820,6.79956878,3438.2,3436.9,3.2078]
[1736974994025,6.79956878,3438.2,3436.9,3.7381]
[1736974994026,0.58187,3437.0,3436.9,3.7381]
[1736974994431,2.89363878,3437.0,3436.9,0.5303]
[1736974995424,0.58187,3437.0,3436.9,0.5303]
[1736974995623,2.89363878,3437.0,3436.9,0.5303]
[1736974995824,2.89363878,3437.0,3436.9,0.6702]
[1736974998331,0.58187,3437.0,3436.9,1.25208]
[1736974998519,0.58187,3437.1,3437.0,0.58185]
[1736974998722,3.2078,3437.2,3436.9,0.6702]
[1736974998931,3.78964,3437.2,3437.1,0.58185]
[1736974999131,5.51956878,3437.6,3437.1,40.8]
[1736974999434,3.2078,3437.6,3437.1,40.8]
[1736974999643,0.58183,3437.2,3437.1,40.8]
[1736974999930,0.58183,3437.2,3437.1,41.38185]
[1736975000633,3.2078,3437.6,3437.1,40.8]
[1736975000828,0.58181,3437.4,3437.3,0.5818]
[1736975001029,0.58183,3437.3,3437.2,0.58183]
[1736975002031,0.58183,3437.3,3437.2,1.14323]
[1736975002831,0.58183,3437.3,3437.2,0.5614]
[1736975003433,0.58183,3437.3,3437.2,1.14323]
[1736975003636,0.58183,3437.3,3437.2,0.5614]
[1736975004331,3.2078,3437.6,3437.2,0.5614]
[1736975004533,0.58182,3437.4,3437.3,0.58181]
[1736975006031,3.78957,3437.6,3437.5,0.58178]
[1736975008236,3.78957,3437.6,3437.3,1.1637]
[1736975008237,0.58172,3438.0,3437.9,0.5817]
[1736975009234,3.78949,3438.1,3438.0,0.5817]
[1736975010843,0.58165,3438.4,3438.3,0.58163]
[1736975011234,0.58163,3438.5,3438.4,0.58161]
[1736975011445,3.2078,3438.6,3438.5,0.58161]
[1736975012545,3.7894,3438.6,3438.5,0.58161]
[1736975013140,3.2078,3438.6,3438.5,0.58161]
[1736975013340,2.31176878,3439.1,3439.0,0.58153]
[1736975013847,0.58151,3439.1,3439.0,0.58153]
[1736975014742,0.58155,3439.0,3438.9,0.58153]
[1736975016248,0.58155,3439.0,3438.7,0.5666]
[1736975016249,2.31176878,3439.1,3438.7,0.5666]
[1736975016443,2.89332878,3438.8,3438.7,0.5666]
[1736975016640,0.58163,3438.4,3438.3,0.5329]
[1736975017048,0.58162,3438.5,3438.4,0.58161]
[1736975017550,3.2078,3438.7,3438.3,0.5329]
[1736975017747,0.58163,3438.4,3438.3,1.11454]
[1736975019149,0.58163,3438.5,3438.4,0.58162]
[1736975021051,3.2078,3438.7,3438.3,0.5329]
[1736975021250,0.58163,3438.4,3438.3,1.11454]
[1736975021556,0.58163,3438.4,3438.3,0.5329]
[1736975023363,0.58163,3438.4,3438.3,1.11455]
[1736975023565,0.58163,3438.4,3438.3,0.5329]
[1736975023862,0.58163,3438.4,3438.3,1.11455]
[1736975025755,0.58163,3438.4,3438.3,0.5329]
[1736975026459,0.58163,3438.4,3438.3,1.11455]
[1736975026855,0.58163,3438.4,3438.3,0.5329]
[1736975027265,0.58163,3438.4,3438.3,0.58165]
[1736975027466,0.58168,3438.2,3438.1,0.58166]
[1736975027865,0.58168,3438.2,3438.0,3.2078]
[1736975027866,0.58168,3438.1,3438.0,3.2078]
[1736975028464,0.5656,3438.1,3437.7,0.58174]
[1736975028668,0.58173,3437.8,3437.7,0.58174]
[1736975029964,0.58173,3437.8,3437.4,1.45448]
[1736975029965,3.8035,3438.3,3437.5,0.5867]
[1736975030266,3.78945,3438.3,3438.2,0.58166]
[1736975030667,3.78945,3438.3,3438.2,41.38166]
[1736975030969,3.78945,3438.3,3438.2,0.58166]
[1736975031762,0.58166,3438.2,3438.1,41.38167]
[1736975031971,0.58168,3438.1,3438.0,0.5793]
[1736975032865,0.58168,3438.1,3438.0,1.161]
[1736975035663,0.58165,3438.4,3438.3,0.58162]
[1736975038470,0.58162,3438.6,3438.5,0.5816]
[1736975038865,0.58165,3438.4,3438.3,0.58162]
[1736975041367,0.58159,3438.8,3438.7,0.58156]
[1736975047074,0.58159,3438.8,3438.7,1.14856]
[1736975048473,0.58159,3438.8,3438.7,0.567]
[1736975048681,0.58158,3438.7,3438.6,1.1632]
[1736975048979,1.12898,3438.7,3438.6,1.1632]
[1736975054286,4.33678,3438.7,3438.6,1.1632]
[1736975058879,1.12898,3438.7,3438.6,1.1632]
[1736975059589,1.12898,3438.7,3438.6,1.7074]
[1736975059983,10.15301966,3438.7,3438.6,1.7074]
[1736975061482,9.60561966,3438.7,3438.6,1.7074]
[1736975062486,9.02403966,3438.7,3438.6,2.289]
[1736975062682,9.60561966,3438.7,3438.6,1.7074]
[1736975063389,0.58158,3438.7,3438.6,1.7074]
[1736975063880,0.58158,3438.7,3438.6,1.1632]
[1736975064184,1.12608,3438.7,3438.6,1.1632]
[1736975066089,1.5920105,3438.7,3438.6,1.1632]
[1736975067492,1.12608,3438.7,3438.6,1.1632]
[1736975069088,0.58168,3438.1,3438.0,0.5422]
[1736975069692,2.89344878,3438.1,3438.0,0.5422]
[1736975070591,2.89344878,3438.1,3437.8,0.5605]
[1736975070592,0.58182,3437.3,3437.2,3.2078]
[1736975070791,0.58193,3436.6,3436.5,4.89924]
[1736975070995,0.58193,3436.6,3436.5,4.3173]
[1736975071485,0.58193,3436.6,3436.5,2.2734]
[1736975071690,0.58193,3436.6,3436.5,2.4155]
[1736975071897,0.58193,3436.6,3436.5,3.2032]
[1736975074500,0.58193,3436.6,3436.5,2.0937]
[1736975074692,1.14353,3436.6,3436.5,1.5499]
[1736975074893,1.14353,3436.6,3436.5,1.7826]
[1736975075496,1.68803,3436.6,3436.5,1.7826]
[1736975077196,0.58193,3436.6,3436.5,1.7826]
[1736975077803,0.58193,3436.6,3436.5,42.5826]
[1736975079305,0.58193,3436.6,3436.5,1.7826]
[1736975084308,0.58203,3436.0,3435.9,1.0823]
[1736975084606,2.89379878,3436.0,3435.9,0.5573]
[1736975085512,0.58219,3435.1,3435.0,0.5485]
[1736975085699,2.89395878,3435.1,3435.0,1.1276]
[1736975086403,2.89395878,3435.1,3435.0,0.5791]
[1736975086607,2.89395878,3435.1,3434.6,0.559]
[1736975086608,0.58225,3434.7,3434.6,0.559]
[1736975086911,2.89401878,3434.7,3434.6,1.1381]
[1736975089011,2.89401878,3434.7,3434.6,0.559]
[1736975089508,2.31176878,3434.7,3434.2,0.5665]
[1736975089712,2.89408878,3434.3,3434.2,0.5665]
[1736975096914,0.58232,3434.3,3434.2,0.5665]
[1736975100308,0.58232,3434.3,3434.2,1.14884]
[1736975100613,3.2078,3434.9,3434.2,0.5665]
[1736975100802,0.58226,3434.7,3434.6,0.58226]
[1736975102013,2.31176878,3434.8,3434.2,0.5665]
[1736975102208,0.58228,3434.6,3434.5,0.58228]
[1736975102610,0.5823,3434.5,3434.4,0.58229]
[1736975104013,2.31176878,3434.8,3434.2,0.5665]
[1736975104212,0.58228,3434.6,3434.5,0.58227]
[1736975106408,2.31176878,3434.8,3434.2,0.5665]
[1736975106615,0.58224,3434.8,3434.7,0.58224]
[1736975109105,0.58224,3434.8,3434.7,1.14974]
[1736975112814,2.89400878,3434.8,3434.7,0.5675]
[1736975113213,0.58224,3434.8,3434.7,1.14976]
[1736975114612,0.58224,3434.8,3434.7,0.5675]
[1736975115117,0.58224,3434.8,3434.7,1.14976]
[1736975115318,0.58224,3434.8,3434.7,0.5675]
[1736975115526,0.58224,3434.8,3434.7,1.14976]
[1736975115910,0.58224,3434.8,3434.7,0.5675]
[1736975116115,0.58226,3434.7,3434.6,1.3975]
[1736975116312,1.77316,3434.7,3434.6,0.99416001]
[1736975116809,2.2373111,3434.7,3434.6,0.99416001]
[1736975117024,1.77316,3434.7,3434.6,0.99416001]
[1736975117220,1.77316,3434.7,3434.6,0.56177014]
[1736975118316,2.00437318,3434.7,3434.6,0.56177014]
[1736975119025,0.58239,3433.9,3433.8,0.5693]
[1736975119617,0.58239,3433.9,3433.8,1.15171]
[1736975120017,0.58236,3434.1,3434.0,0.58236]
[1736975120217,0.5823,3434.5,3434.4,0.58229]
[1736975120523,2.31176878,3434.7,3434.0,3.2078]
[1736975120720,0.58239,3433.9,3433.8,1.1517]
[1736975121321,0.58239,3433.9,3433.8,41.9517]
[1736975122426,0.58239,3433.9,3433.8,1.1517]
[1736975122829,0.58239,3433.9,3433.8,0.5693]
[1736975125228,0.58239,3433.9,3433.8,1.15171]
[1736975125425,0.58239,3433.9,3433.8,0.5693]
[1736975125933,3.76764878,3434.2,3433.7,0.58574258]
[1736975125934,0.58241,3433.8,3433.7,0.58574258]
[1736975128921,0.58241,3433.8,3433.7,0.01074258]
[1736975136741,0.58241,3433.8,3433.7,0.56494258]
[1736975138635,0.5824,3434.0,3433.9,0.58238]
[1736975138834,0.58241,3433.9,3433.8,0.5824]
[1736975139436,0.58241,3433.9,3433.8,1.1484]
[1736975139837,0.58241,3433.9,3433.8,0.566]
[1736975140034,0.58241,3433.9,3433.8,1.14841]
[1736975140441,2.89417878,3433.9,3433.8,0.566]
[1736975140640,0.58241,3433.9,3433.8,0.566]
[1736975140845,0.58238,3434.1,3434.0,0.58235]
[1736975141942,0.58239,3434.0,3433.9,0.58238]
[1736975142146,0.58239,3433.9,3433.8,1.1484]
[1736975144143,0.58239,3433.9,3433.8,0.566]
[1736975144442,0.58239,3433.9,3433.8,1.294]
[1736975146551,0.58239,3433.9,3433.8,1.87641]
[1736975148852,0.58239,3433.9,3433.8,1.294]
[1736975149146,0.58239,3433.9,3433.8,2.4588]
[1736975150548,0.58239,3433.9,3433.8,1.8928]
[1736975155960,0.58038599,3433.9,3433.8,1.8928]
[1736975157962,0.58038599,3433.9,3433.8,2.1257]
[1736975161758,0.58038599,3433.9,3433.8,2.3586]
[1736975164568,0.81136931,3433.9,3433.8,2.3586]
[1736975164760,0.81136931,3433.9,3433.8,0.6004]
[1736975165061,0.58258,3432.8,3432.7,1.64478]
[1736975165263,0.58258,3432.8,3432.7,1.0622]
[1736975165460,0.58258,3432.8,3432.7,1.6448]
[1736975165655,0.58258,3432.8,3432.7,1.0622]
[1736975167059,5.51956878,3432.9,3432.6,1.3982]
[1736975167259,0.5826,3432.7,3432.6,0.90353]
[1736975167464,2.31176878,3432.8,3431.9,0.5317]
[1736975167667,2.89448878,3432.0,3431.9,0.5317]
[1736975167865,2.31176878,3432.0,3431.2,6.14676311]
[1736975168085,2.31176878,3431.4,3431.2,3.47066311]
[1736975168265,2.31176878,3431.7,3431.2,3.47066311]
[1736975168462,2.31176878,3431.7,3431.3,3.2078]
[1736975168764,2.31176878,3431.7,3431.2,3.47066311]
[1736975168765,0.58283,3431.3,3431.2,3.47066311]
[1736975169662,0.58283,3431.3,3431.2,2.93896311]
[1736975169968,3.79063,3431.3,3431.2,2.93896311]
[1736975170970,3.2078,3431.3,3431.2,2.93896311]
[1736975171165,3.2078,3431.3,3431.2,4.62611311]
[1736975171470,3.2078,3431.3,3431.2,5.21041311]
[1736975172165,0.5828,3431.6,3431.3,0.58282]
[1736975172466,0.58276,3431.8,3431.6,0.58278]
[1736975173169,5.51956878,3432.0,3431.6,0.58278]
[1736975173170,2.31176878,3432.0,3431.8,0.58274]
[1736975173375,0.58273,3431.9,3431.7,0.58276]
[1736975173665,2.31176878,3432.0,3431.7,0.58276]
[1736975173865,0.58275,3431.8,3431.7,0.58276]
[1736975174666,0.58275,3431.8,3431.4,40.8]
[1736975174869,2.31176878,3432.0,3431.6,0.58277]
[1736975175065,5.51956878,3432.0,3431.4,40.8]
[1736975175269,0.5828,3431.5,3431.4,40.8]
[1736975176071,0.58278,3431.6,3431.5,0.5828]
[1736975176671,0.58279,3431.6,3431.5,0.5828]
[1736975176867,0.5828,3431.5,3431.4,40.8]
[1736975179462,0.58283,3431.3,3431.2,7.88380311]
[1736975179775,0.58283,3431.4,3431.3,0.58283]
[1736975180476,2.31176878,3431.7,3431.2,48.10096311]
[1736975180671,0.58281,3431.5,3431.4,0.5828]
[1736975180873,0.58282,3431.4,3431.3,0.58282]
[1736975181976,0.58283,3431.3,3431.2,48.68380311]
[1736975182275,0.58282,3431.4,3431.3,0.58282]
[1736975182476,2.31176878,3431.7,3431.2,48.10096311]
[1736975182477,0.58283,3431.3,3431.2,48.68380311]
[1736975182776,0.58283,3431.3,3431.2,7.88380311]
[1736975182978,0.58283,3431.3,3431.2,7.30096311]
[1736975183178,0.58283,3431.3,3431.2,7.88381311]
[1736975183882,0.58283,3431.3,3431.2,4.67600311]
[1736975184176,0.58283,3431.3,3431.2,4.09316311]
[1736975184377,0.58283,3431.3,3431.2,3.50886311]
[1736975184775,0.58283,3431.3,3431.2,2.93896311]
[1736975188979,0.58283,3431.3,3431.2,1.41921981]
[1736975189485,0.58283,3431.3,3431.1,1.2848]
[1736975189486,0.58285,3431.2,3431.1,1.16757001]
[1736975189677,3.79065,3431.2,3431.1,1.16757001]
[1736975189873,3.79065,3431.2,3430.4,0.5056]
[1736975189874,0.58295,3430.6,3430.4,0.5056]
[1736975190078,3.79077,3430.5,3430.4,0.5056]
[1736975191078,3.79077,3430.5,3430.4,0.5191]
[1736975191581,3.2078,3430.5,3430.4,41.90209]
[1736975191785,0.58296,3430.6,3430.5,0.58296]
[1736975192379,5.51956878,3430.9,3430.4,0.5191]
[1736975192581,5.51956878,3430.9,3430.5,41.38296]
[1736975192885,0.58296,3430.6,3430.5,40.8]
[1736975193076,2.31176878,3430.6,3430.4,0.5191]
[1736975193280,3.79077,3430.5,3430.4,0.5191]
[1736975193982,3.79077,3430.5,3430.4,0.0135]
[1736975194487,3.79077,3430.5,3430.4,0.214]
[1736975196780,0.58305,3430.0,3429.9,0.4855]
[1736975197086,6.10261878,3430.0,3429.9,0.4855]
[1736975197788,0.58311,3429.7,3429.6,0.4982]
[1736975198887,3.2078,3430.0,3429.6,0.4982]
[1736975199081,3.2078,3430.4,3429.6,1.956]
[1736975199287,2.91403,3431.5,3430.0,3.2078]
[1736975199288,5.51956878,3430.8,3430.0,3.2078]
[1736975199588,0.58299,3430.4,3430.3,0.583]
[1736975199789,2.31176878,3430.5,3430.1,1.0302]
[1736975199988,0.58299,3430.4,3430.3,0.583]
[1736975201491,0.58302,3430.3,3430.2,0.58301]
[1736975202386,0.58302,3430.2,3430.1,1.0302]
[1736975202793,0.58302,3430.2,3430.1,1.0402]
[1736975202995,0.58302,3430.2,3430.1,1.62324]
[1736975203195,0.58302,3430.2,3430.1,1.0402]
[1736975203396,1.45741,3430.6,3430.1,1.0402]
[1736975203585,0.58302,3430.3,3430.2,0.583]
[1736975204394,5.51956878,3430.8,3430.3,0.58298]
[1736975204395,0.583,3430.4,3430.3,0.58298]
[1736975204590,0.58297,3430.6,3430.5,0.58295]
[1736975204784,0.58294,3430.7,3430.6,0.58294]
[1736975204984,3.2078,3430.8,3430.2,1.45753]
[1736975205298,3.79073,3430.8,3430.7,0.58294]
[1736975205499,2.31176878,3431.4,3430.7,3.2078]
[1736975205706,0.58287,3431.2,3431.1,0.58285]
[1736975205907,0.58285,3431.3,3431.2,0.58283]
[1736975206107,0.58287,3431.2,3431.1,0.58286]
[1736975206412,0.58287,3431.2,3431.1,0.81596]
[1736975207109,0.58287,3431.2,3431.1,0.2331]
[1736975207408,0.58287,3431.2,3431.1,0.81597]
[1736975207708,0.58287,3431.2,3431.1,0.2331]
[1736975209610,0.58287,3431.2,3431.1,0.81597]
[1736975210607,0.58287,3431.2,3431.1,0.2331]
[1736975210802,0.58287,3431.2,3431.1,0.81597]
[1736975211106,0.58287,3431.2,3431.1,0.2331]
[1736975212410,0.58287,3431.2,3431.1,0.81597]
[1736975213811,0.58287,3431.2,3431.1,0.2331]
[1736975214203,0.58287,3431.2,3431.1,0.81597]
[1736975214911,0.58287,3431.2,3431.1,0.2331]
[1736975215303,0.58287,3431.2,3431.1,0.81597]
[1736975215908,0.58287,3431.2,3431.1,0.2331]
[1736975216512,0.58287,3431.2,3431.1,0.81597]
[1736975216711,0.58287,3431.2,3431.1,0.2331]
[1736975217111,0.58287,3431.2,3431.1,0.81597]
[1736975218411,0.58287,3431.2,3431.1,0.2331]